fUSD/lending_fUSD_20240625
["ID","MTS","AMOUNT","RATE_DAILY","PERIOD"]
[330343123,1719273635209,165.03,0.00010243,2]
[330343125,1719273945121,-564.02,0.00011032,2]
[330343126,1719273945141,-587.71262734,0.00011918,2]
[330343127,1719273945162,-14.24823949,0.00011918,2]
[330343128,1719274050401,-295.9392,0.00011228,2]
[330343129,1719274050422,-4.07960904,0.00011817,2]
[330343136,1719274145117,-717.00881294,0.00011402,2]
[330343137,1719274145137,-299.08814139,0.00011716,2]
[330343138,1719274145157,-217.9630035,0.00011816,2]
[330343139,1719274145179,-2828.45274486,0.00011872,2]
[330343140,1719274145200,-155.5439147,0.00012018,2]
[330343141,1719274145220,-944.14155343,0.00012153,2]
[330343142,1719274145239,-150.0,0.00012426,2]
[330343143,1719274145259,-155.54391469,0.00012489,2]
[330343144,1719274145277,-755.16,0.00012554,2]
[330343145,1719274145297,-703.83,0.00012565,2]
[330343146,1719274145317,-250.0,0.00012695,2]
[330343147,1719274145337,-200.0,0.00012785,2]
[330343148,1719274145357,-999.99,0.00012785,2]
[330343149,1719274145376,-150.0,0.00012856,2]
[330343150,1719274145397,-150.0,0.00012856,2]
[330343151,1719274145416,-1489.29,0.00012857,2]
[330343152,1719274145438,-669.64123249,0.00012891,2]
[330343164,1719274232547,-330.35876751,0.00012891,2]
[330343165,1719274232558,-992.52,0.00012931,2]
[330343166,1719274232567,-162.55,0.00012949,2]
[330343167,1719274232577,-250.0,0.00012949,2]
[330343168,1719274232587,-155.54391469,0.00012959,2]
[330343169,1719274232601,-1285.71256166,0.00013295,2]
[330343170,1719274232611,-109.44813979,0.00013296,2]
[330343171,1719274232633,-426.30668772,0.00013296,2]
[330343188,1719274237953,-28.26517249,0.00013296,2]
[330343189,1719274237963,-167.34,0.00013314,2]
[330343190,1719274237973,-446.64404617,0.00013403,2]
[330343191,1719274237986,-1127.5027814,0.00013403,2]
[330343192,1719274237995,-155.0,0.00013419,2]
[330343193,1719274238005,-155.54391469,0.0001343,2]
[330343194,1719274238014,-127.69927045,0.00013447,2]
[330343195,1719274238072,-27.30072955,0.00013447,2]
[330343196,1719274238082,-185.22,0.00013468,2]
[330343197,1719274238091,-366.78228311,0.00013471,2]
[330343198,1719274238100,-242.12454532,0.00013471,2]
[330343199,1719274238111,-155.09506408,0.00013497,2]
[330343200,1719274238123,-150.99,0.00013592,2]
[330343201,1719274238133,-224.42,0.00013699,2]
[330343202,1719274238143,-611.04460722,0.00013699,2]
[330343203,1719274238171,-1331.55539278,0.00013699,2]
[330343204,1719274238180,-157.63720855,0.00013699,2]
[330343210,1719274240159,-29.90279145,0.00013699,2]
[330343211,1719274240169,-262.27151479,0.00013799,2]
[330343212,1719274240212,-30.92290624,0.00013799,2]
[330343213,1719274240221,-251.10919789,0.00013859,2]
[330343214,1719274240231,-917.96789587,0.00013898,2]
[330343215,1719274240310,-396.05309653,0.00013898,2]
[330343216,1719274240395,-881.09385613,0.00013898,2]
[330343217,1719274240407,-3184.85435059,0.00013898,2]
[330343218,1719274240417,-700.00100253,0.000139,2]
[330343219,1719274240428,-3333.80359747,0.000139,2]
[330343220,1719274240439,-155.54391469,0.000139,2]
[330343221,1719274240448,-1000.0,0.000139,2]
[330343222,1719274240458,-200.0,0.000139,5]
[330343223,1719274240467,-2500.0,0.000139,2]
[330343224,1719274240476,-1739.9435247,0.000139,2]
[330343225,1719274240486,-910.34403493,0.000139,2]
[330343226,1719274240497,-2850.1627565,0.00013969,2]
[330343227,1719274240506,-596.01357101,0.00013979,2]
[330343228,1719274240515,-2000.0,0.0001398,2]
[330343229,1719274240524,-200.0,0.0001398,2]
[330343230,1719274240533,-2000.0,0.0001398,2]
[330343231,1719274240543,-200.0,0.0001398,2]
[330343232,1719274240552,-2000.0,0.0001398,2]
[330343233,1719274240561,-200.0,0.0001398,2]
[330343234,1719274240571,-1234.45919,0.0001398,2]
[330343235,1719274240581,-221.7142343,0.0001398,2]
[330343236,1719274240601,-1778.2857657,0.0001398,2]
[330343237,1719274240611,-200.0,0.0001398,2]
[330343238,1719274240620,-74.55357859,0.00013989,2]
[330343239,1719274240631,-480.2333528,0.00013989,2]
[330343240,1719274240642,-1312.46955521,0.00013989,2]
[330343241,1719274240652,-16140.5612457,0.00013989,2]
[330343242,1719274240661,-178.94598756,0.0001399,2]
[330343243,1719274240671,-408.07543191,0.00013999,5]
[330343245,1719274240681,-328.45118823,0.00013999,2]
[330343247,1719274240690,-77982.30363806,0.00014,2]
[330343292,1719274243625,-651.12,0.00013447,2]
[330343296,1719274246108,-747.54487454,0.00013447,2]
[330343297,1719274246278,-651.21,0.00013447,2]
[330343298,1719274307890,500.0,0.00011918,2]
[330343299,1719274308250,339.0945965,0.00011918,2]
[330343301,1719274591022,169.0,0.0001499,30]
[330343302,1719274591591,169.0,0.0001498,30]
[330343303,1719274592095,169.0,0.0001497,30]
[330343304,1719274592594,169.0,0.00020889,30]
[330343305,1719274593085,169.0,0.00020879,30]
[330343306,1719274593583,169.0,0.00020869,30]
[330343307,1719274594078,169.0,0.00021823,30]
[330343308,1719274594573,169.0,0.00021813,30]
[330343309,1719274595337,169.0,0.0002297,30]
[330343310,1719274595576,171.0,0.0002296,30]
[330343311,1719274714863,157.062509,0.00025,63]
[330343312,1719274744184,157.062509,0.00025,64]
[330343313,1719274762138,157.062509,0.00025,65]
[330343314,1719274777038,157.062509,0.00025,66]
[330343315,1719274800716,157.062509,0.00025,68]
[330343316,1719274813316,157.062509,0.00025,69]
[330343317,1719274820994,165.03,0.00010212,2]
[330343318,1719274844489,157.062509,0.00025,70]
[330343319,1719274854979,205.64517353,0.00010212,2]
[330343320,1719274858462,552.49402152,0.00010212,2]
[330343321,1719274955477,547.31879658,0.00010212,2]
[330343323,1719275045094,168.44,0.00010143,2]
[330343324,1719275140158,-300.0,0.00010875,2]
[330343325,1719275140194,-15.64325791,0.00010876,2]
[330343326,1719275184391,1000.0,0.00026,120]
[330343327,1719275201313,1000.0,0.00026,120]
[330343328,1719275207941,1000.0,0.00026,120]
[330343329,1719275213352,1000.0,0.00026,120]
[330343330,1719275218719,1000.0,0.00026,120]
[330343331,1719275224595,431.924279,0.00026,120]
[330343332,1719275349229,-171.35674209,0.00010876,2]
[330343333,1719275349250,-561.49,0.00010877,2]
[330343334,1719275349271,-150.0,0.00011097,2]
[330343335,1719275349292,-1974.04895791,0.00011098,2]
[330343336,1719275350113,-8562.95387745,0.00011098,2]
[330343337,1719275350135,-943.90887292,0.00011917,2]
[330343338,1719275350157,-160.9054035,0.00011918,2]
[330343339,1719275351502,-500.0,0.00011918,2]
[330343340,1719275351535,-500.0,0.00011918,2]
[330343341,1719275351557,-500.0,0.00011918,2]
[330343342,1719275351586,-500.0,0.00011918,2]
[330343343,1719275351608,-500.0,0.00011918,2]
[330343344,1719275351630,-500.0,0.00011918,2]
[330343345,1719275351652,-500.0,0.00011918,2]
[330343346,1719275351674,-500.0,0.00011918,2]
[330343347,1719275351696,-500.0,0.00011918,2]
[330343348,1719275351721,-500.0,0.00011918,2]
[330343349,1719275351743,-500.0,0.00011918,2]
[330343350,1719275351767,-976.0,0.00011918,2]
[330343351,1719275351792,-176.45216287,0.0001203,2]
[330343352,1719275351819,-437.10396854,0.00012153,2]
[330343353,1719275351841,-210.0,0.00012207,2]
[330343354,1719275351862,-450.15761108,0.00012287,2]
[330343355,1719275351885,-430.46189482,0.00012288,2]
[330343356,1719275351907,-1000.0,0.00012558,2]
[330343357,1719275351929,-250.0,0.00012723,2]
[330343358,1719275351950,-706.14,0.00012723,2]
[330343359,1719275351971,-250.0,0.0001276,2]
[330343360,1719275351992,-200.0,0.00012792,2]
[330343361,1719275352016,-185.22,0.00012907,2]
[330343362,1719275352038,-1196.07,0.00012934,2]
[330343363,1719275352058,-290.14,0.00012934,2]
[330343364,1719275352081,-561.49,0.00013141,2]
[330343365,1719275352107,-163.21,0.00013291,2]
[330343366,1719275352129,-156.7891,0.00013303,2]
[330343367,1719275352388,286.84720876,0.00012565,2]
[330343368,1719275352627,-1178.77279124,0.00012565,2]
[330343369,1719275352649,-172.8163393,0.00013427,2]
[330343381,1719275432336,-158.92298885,0.00013427,2]
[330343382,1719275432346,-150.0,0.00013446,2]
[330343383,1719275432355,-78.00119255,0.00013447,2]
[330343384,1719275432533,-1238.13099638,0.00013447,2]
[330343385,1719275432545,-1228.11482033,0.00013447,2]
[330343403,1719275438391,-1063.62414582,0.00013447,2]
[330343406,1719275438534,-438.70900783,0.00013447,2]
[330343407,1719275438567,-182.11172105,0.00013447,2]
[330343408,1719275440385,-671.11125443,0.00013447,2]
[330343409,1719275441400,-6953.15532978,0.00013447,2]
[330343410,1719275441410,-4453.28777438,0.00013482,2]
[330343411,1719275441419,-328.45118823,0.00013602,2]
[330343412,1719275441434,-167.61,0.00013639,2]
[330343413,1719275441444,-272.60145681,0.00013698,2]
[330343414,1719275441453,-224.42,0.00013699,2]
[330343415,1719275441462,-1500.0,0.00013699,5]
[330343416,1719275441472,-173.44,0.00013699,2]
[330343417,1719275441481,-273.30687246,0.00013718,2]
[330343418,1719275441491,-1314.10807011,0.00013719,2]
[330343419,1719275441500,-307.73444188,0.0001375,2]
[330343420,1719275441512,-155.0,0.000138,2]
[330343421,1719275441523,-220.09,0.00013808,2]
[330343422,1719275441531,-417.10034,0.0001386,2]
[330343423,1719275441541,-612.9089391,0.00013884,2]
[330343424,1719275441550,-500.0,0.00013887,2]
[330343425,1719275441559,-200.0,0.00013887,2]
[330343426,1719275441570,-500.0,0.00013888,2]
[330343427,1719275441579,-500.0,0.00013888,2]
[330343428,1719275441589,-500.0,0.00013888,2]
[330343429,1719275441598,-200.0,0.00013888,2]
[330343430,1719275441607,-200.0,0.00013888,2]
[330343431,1719275441617,-299.4225,0.000139,2]
[330343432,1719275441911,-18431.7365429,0.000139,2]
[330343459,1719275442551,-165.3584571,0.000139,2]
[330343460,1719275442561,-12338.2276,0.000139,2]
[330343461,1719275442570,-6282.9137,0.000139,2]
[330343462,1719275442579,-500.0,0.000139,2]
[330343463,1719275442589,-151.0,0.000139,2]
[330343464,1719275442598,-151.0,0.000139,2]
[330343465,1719275442607,-151.0,0.000139,2]
[330343466,1719275442617,-151.0,0.000139,2]
[330343467,1719275442626,-236.734458,0.000139,2]
[330343468,1719275442636,-151.0,0.000139,2]
[330343469,1719275442645,-236.734458,0.000139,2]
[330343470,1719275442655,-151.0,0.000139,2]
[330343471,1719275442664,-151.0,0.000139,2]
[330343472,1719275442673,-151.0,0.000139,2]
[330343473,1719275442682,-151.0,0.000139,2]
[330343474,1719275442693,-151.0,0.000139,2]
[330343475,1719275442702,-151.0,0.000139,2]
[330343476,1719275442711,-151.0,0.000139,2]
[330343477,1719275442720,-151.0,0.000139,2]
[330343478,1719275442729,-151.0,0.000139,2]
[330343479,1719275442738,-186.788865,0.000139,2]
[330343480,1719275442747,-174.102653,0.000139,2]
[330343481,1719275442756,-174.102653,0.000139,2]
[330343482,1719275442765,-151.0,0.000139,2]
[330343483,1719275442774,-151.0,0.000139,2]
[330343484,1719275442783,-151.0,0.000139,2]
[330343485,1719275442793,-151.0,0.000139,2]
[330343486,1719275442802,-289.811593,0.000139,2]
[330343487,1719275442811,-235.474987,0.000139,2]
[330343488,1719275442821,-235.474987,0.000139,2]
[330343489,1719275442830,-151.0,0.000139,2]
[330343490,1719275442839,-151.0,0.000139,2]
[330343491,1719275442848,-151.0,0.000139,2]
[330343492,1719275442857,-184.471316,0.000139,2]
[330343493,1719275442866,-560.895864,0.000139,2]
[330343494,1719275442875,-560.895864,0.000139,2]
[330343495,1719275442884,-151.0,0.000139,2]
[330343496,1719275442893,-151.0,0.000139,2]
[330343497,1719275442903,-560.895864,0.000139,2]
[330343498,1719275442912,-560.895864,0.000139,2]
[330343499,1719275442922,-426.223868,0.000139,2]
[330343500,1719275442931,-426.223868,0.000139,2]
[330343501,1719275442941,-426.223868,0.000139,2]
[330343502,1719275442951,-426.223868,0.000139,2]
[330343503,1719275442960,-300.0,0.000139,5]
[330343504,1719275442969,-151.0,0.000139,2]
[330343505,1719275442978,-151.0,0.000139,2]
[330343506,1719275442987,-151.0,0.000139,2]
[330343507,1719275442996,-151.0,0.000139,2]
[330343508,1719275443006,-263.148176,0.000139,2]
[330343509,1719275443015,-151.0,0.000139,2]
[330343510,1719275443024,-169.050741,0.000139,2]
[330343511,1719275443033,-180.256005,0.000139,2]
[330343512,1719275443042,-169.050741,0.000139,2]
[330343513,1719275443051,-151.0,0.000139,2]
[330343514,1719275443061,-151.0,0.000139,2]
[330343515,1719275443070,-151.0,0.000139,2]
[330343516,1719275443079,-151.0,0.000139,2]
[330343519,1719275443089,-151.0,0.000139,2]
[330343522,1719275443098,-151.0,0.000139,2]
[330343525,1719275443107,-151.0,0.000139,2]
[330343527,1719275443117,-175.846552,0.000139,2]
[330343530,1719275443127,-175.846552,0.000139,2]
[330343533,1719275443136,-151.0,0.000139,2]
[330343535,1719275443145,-5277.31341921,0.000139,2]
[330343538,1719275443154,-151.0,0.000139,2]
[330343540,1719275443163,-151.0,0.000139,2]
[330343542,1719275443173,-151.0,0.000139,2]
[330343544,1719275443182,-151.0,0.000139,2]
[330343545,1719275443192,-292.868304,0.000139,2]
[330343546,1719275443200,-447.736121,0.000139,2]
[330343547,1719275443209,-447.736121,0.000139,2]
[330343549,1719275443219,-814.329058,0.000139,2]
[330343551,1719275443229,-814.329058,0.000139,2]
[330343553,1719275443238,-302.745359,0.000139,2]
[330343556,1719275443247,-302.745359,0.000139,2]
[330343558,1719275443256,-814.329058,0.000139,2]
[330343560,1719275443265,-814.329058,0.000139,2]
[330343562,1719275443274,-302.745359,0.000139,2]
[330343564,1719275443283,-302.745359,0.000139,2]
[330343565,1719275443292,-317.0779841,0.000139,2]
[330343566,1719275443301,-7500.0,0.000139,2]
[330343567,1719275443310,-151.0,0.000139,2]
[330343569,1719275443320,-151.0,0.000139,2]
[330343571,1719275443331,-244.173427,0.000139,2]
[330343573,1719275443340,-244.173427,0.000139,2]
[330343575,1719275443349,-244.173427,0.000139,2]
[330343577,1719275443359,-244.173427,0.000139,2]
[330343578,1719275443368,-151.0,0.000139,2]
[330343579,1719275443377,-205.279373,0.000139,2]
[330343580,1719275443388,-151.0,0.000139,2]
[330343581,1719275443397,-151.0,0.000139,2]
[330343582,1719275443406,-151.0,0.000139,2]
[330343583,1719275443416,-151.0,0.000139,2]
[330343584,1719275443428,-216.221736,0.000139,2]
[330343585,1719275443442,-216.221736,0.000139,2]
[330343586,1719275443451,-216.221736,0.000139,2]
[330343587,1719275443461,-216.221736,0.000139,2]
[330343588,1719275443471,-1522.45058413,0.000139,2]
[330343589,1719275443481,-177.832847,0.000139,2]
[330343590,1719275443490,-474.2892422,0.000139,2]
[330343591,1719275443500,-166.14401618,0.00013912,2]
[330343592,1719275443512,-1285.71256166,0.00013912,2]
[330343593,1719275443522,-527.94009131,0.00013912,2]
[330343594,1719275443531,-690.00328514,0.00013912,2]
[330343595,1719275443540,-1498.39488329,0.00013912,2]
[330343596,1719275443550,-1227.40608506,0.00013978,6]
[330343597,1719275443559,-1493.37730779,0.00013979,2]
[330343598,1719275443569,-1493.37730779,0.00013979,2]
[330343599,1719275443578,-1371.11019414,0.00013979,2]
[330343600,1719275443587,-162.8595914,0.00013989,2]
[330343601,1719275443596,-151.0,0.00013989,2]
[330343602,1719275443606,-151.0,0.00013989,2]
[330343603,1719275443616,-151.0,0.00013989,2]
[330343604,1719275443625,-151.0,0.00013989,2]
[330343605,1719275443635,-151.0,0.00013989,2]
[330343607,1719275443644,-151.0,0.00013989,2]
[330343609,1719275443653,-151.0,0.00013989,2]
[330343611,1719275443662,-252.80477,0.00013989,2]
[330343613,1719275443671,-151.0,0.00013989,2]
[330343615,1719275443680,-151.0,0.00013989,2]
[330343617,1719275443692,-151.0,0.00013989,2]
[330343619,1719275443701,-252.80477,0.00013989,2]
[330343621,1719275443709,-174.102653,0.00013989,2]
[330343623,1719275443719,-174.102653,0.00013989,2]
[330343624,1719275443728,-151.0,0.00013989,2]
[330343625,1719275443737,-151.0,0.00013989,2]
[330343626,1719275443746,-151.0,0.00013989,2]
[330343627,1719275443756,-235.474987,0.00013989,2]
[330343628,1719275443766,-235.474987,0.00013989,2]
[330343629,1719275443775,-151.0,0.00013989,2]
[330343630,1719275443784,-151.0,0.00013989,2]
[330343631,1719275443794,-169.050741,0.00013989,2]
[330343632,1719275443803,-169.050741,0.00013989,2]
[330343633,1719275443812,-151.0,0.00013989,2]
[330343634,1719275443821,-151.0,0.00013989,2]
[330343635,1719275443832,-151.0,0.00013989,2]
[330343636,1719275443842,-151.0,0.00013989,2]
[330343637,1719275443852,-175.846552,0.00013989,2]
[330343638,1719275443862,-175.846552,0.00013989,2]
[330343639,1719275443872,-151.0,0.00013989,2]
[330343640,1719275443882,-151.0,0.00013989,2]
[330343641,1719275443891,-186.83957,0.00013989,2]
[330343642,1719275443900,-151.0,0.00013989,2]
[330343643,1719275443910,-151.0,0.00013989,2]
[330343644,1719275443919,-447.736121,0.00013989,2]
[330343645,1719275443928,-447.736121,0.00013989,2]
[330343646,1719275443939,-18486.9811027,0.00013989,2]
[330343647,1719275443948,-3375.3447495,0.00013989,2]
[330343648,1719275443957,-2817.3645653,0.0001399,2]
[330343649,1719275443966,-260.11,0.0001399,2]
[330343650,1719275443976,-289.171628,0.0001399,2]
[330343651,1719275443985,-151.0,0.0001399,2]
[330343652,1719275443994,-151.0,0.0001399,2]
[330343653,1719275444004,-236.734458,0.0001399,2]
[330343654,1719275444013,-151.0,0.0001399,2]
[330343655,1719275444023,-236.734458,0.0001399,2]
[330343656,1719275444032,-151.0,0.0001399,2]
[330343657,1719275444041,-151.0,0.0001399,2]
[330343658,1719275444051,-151.0,0.0001399,2]
[330343659,1719275444060,-151.0,0.0001399,2]
[330343660,1719275444070,-151.0,0.0001399,2]
[330343661,1719275444079,-151.560481,0.0001399,2]
[330343662,1719275444089,-151.0,0.0001399,2]
[330343663,1719275444100,-151.0,0.0001399,2]
[330343664,1719275444109,-151.0,0.0001399,2]
[330343665,1719275444118,-151.0,0.0001399,2]
[330343666,1719275444127,-151.0,0.0001399,2]
[330343667,1719275444137,-252.80477,0.0001399,2]
[330343668,1719275444146,-152.490432,0.0001399,2]
[330343669,1719275444156,-151.0,0.0001399,2]
[330343670,1719275444165,-151.0,0.0001399,2]
[330343671,1719275444175,-252.80477,0.0001399,2]
[330343672,1719275444185,-174.102653,0.0001399,2]
[330343673,1719275444195,-174.102653,0.0001399,2]
[330343674,1719275444204,-151.0,0.0001399,2]
[330343675,1719275444213,-266.049388,0.0001399,2]
[330343676,1719275444225,-235.474987,0.0001399,2]
[330343677,1719275444235,-235.474987,0.0001399,2]
[330343678,1719275444244,-151.0,0.0001399,2]
[330343679,1719275444254,-560.895864,0.0001399,2]
[330343680,1719275444263,-151.0,0.0001399,2]
[330343681,1719275444273,-560.895864,0.0001399,2]
[330343682,1719275444283,-426.223868,0.0001399,2]
[330343683,1719275444292,-426.223868,0.0001399,2]
[330343684,1719275444301,-151.0,0.0001399,2]
[330343685,1719275444311,-151.0,0.0001399,2]
[330343686,1719275444320,-169.050741,0.0001399,2]
[330343687,1719275444329,-151.0,0.0001399,2]
[330343688,1719275444338,-169.050741,0.0001399,2]
[330343689,1719275444347,-151.0,0.0001399,2]
[330343690,1719275444356,-151.0,0.0001399,2]
[330343691,1719275444366,-151.0,0.0001399,2]
[330343692,1719275444375,-175.846552,0.0001399,2]
[330343693,1719275444385,-175.846552,0.0001399,2]
[330343694,1719275444395,-151.0,0.0001399,2]
[330343695,1719275444404,-151.0,0.0001399,2]
[330343696,1719275444414,-447.736121,0.0001399,2]
[330343697,1719275444424,-447.736121,0.0001399,2]
[330343698,1719275444436,-814.329058,0.0001399,2]
[330343699,1719275444447,-302.745359,0.0001399,2]
[330343700,1719275444457,-814.329058,0.0001399,2]
[330343701,1719275444467,-302.745359,0.0001399,2]
[330343702,1719275444479,-151.0,0.0001399,2]
[330343703,1719275444488,-244.173427,0.0001399,2]
[330343704,1719275444498,-244.173427,0.0001399,2]
[330343705,1719275444509,-151.0,0.0001399,2]
[330343706,1719275444520,-151.0,0.0001399,2]
[330343707,1719275444530,-216.221736,0.0001399,2]
[330343708,1719275444548,-216.221736,0.0001399,2]
[330343709,1719275444560,-151.0,0.00013999,2]
[330343710,1719275444570,-169.050741,0.00013999,2]
[330343711,1719275444580,-151.0,0.00013999,2]
[330343712,1719275444590,-169.050741,0.00013999,2]
[330343713,1719275444600,-151.0,0.00013999,2]
[330343714,1719275444610,-151.0,0.00013999,2]
[330343715,1719275444620,-175.846552,0.00013999,2]
[330343716,1719275444629,-175.846552,0.00013999,2]
[330343717,1719275444640,-527.0,0.00014,2]
[330343718,1719275444650,-230570.23846009,0.00014,2]
[330343719,1719275444666,-22962.53332055,0.00014,2]
[330343720,1719275444982,-35.07147316,0.00013979,2]
[330343721,1719275445617,-115.92852684,0.00013979,2]
[330343722,1719275445628,-151.0,0.0001399,2]
[330343723,1719275445639,-14858.51197315,0.00014,2]
[330343725,1719275446822,-382.27218648,0.00013912,2]
[330343726,1719275446833,-1111.10512131,0.00013912,2]
[330343727,1719275446843,-178.94598756,0.0001399,2]
[330343728,1719275446852,-1724.05705306,0.00014,2]
[330343729,1719275446866,-1151.7217099,0.00014,2]
[330343730,1719275446877,-1286.522828,0.00014,2]
[330343731,1719275446991,-277.77979186,0.00014,2]
[330343732,1719275447002,-1462.16390675,0.00014,2]
[330343733,1719275447012,-278.88464835,0.00014,2]
[330343734,1719275581882,164.28,0.00010432,2]
[330343737,1719275636032,372.91104126,0.00010432,2]
[330343738,1719275636056,3242.0,0.00010432,2]
[330343740,1719276198000,500.0,0.00024,30]
[330343741,1719276208329,500.0,0.00024,30]
[330343742,1719276444121,-254.0,0.00010626,2]
[330343743,1719276444143,-645.01,0.00010627,2]
[330343744,1719276444164,-658.729559,0.00011144,2]
[330343745,1719276444184,-5626.02765307,0.000112,2]
[330343746,1719276444204,-887.93932126,0.00011294,2]
[330343747,1719276444224,-300.0,0.00011401,2]
[330343748,1719276444244,-2375.09157428,0.00011402,2]
[330343749,1719276444264,-150.0,0.00011871,2]
[330343750,1719276444284,-150.0,0.00012301,2]
[330343751,1719276444304,-251.89452892,0.00012412,2]
[330343752,1719276449485,-4168.26386479,0.00011401,2]
[330343753,1719276546504,-3849.8654,0.00011098,2]
[330343754,1719276548086,-1530.10379912,0.00011098,2]
[330343755,1719276548110,-552.49402152,0.00011401,2]
[330343756,1719276548133,-3064.26495772,0.00011401,2]
[330343757,1719276548163,-1161.43180298,0.00011401,2]
[330343758,1719276567129,-75.32343674,0.00011401,2]
[330343759,1719276567150,-392.16088792,0.00012412,2]
[330343768,1719276632165,-155.94458316,0.00012412,2]
[330343769,1719276632174,-765.90316131,0.00012545,2]
[330343770,1719276632227,-1132.51470823,0.00012545,2]
[330343777,1719276637708,-2452.84213046,0.00012545,2]
[330343778,1719276637718,-156.71,0.00012598,2]
[330343779,1719276637728,-250.0,0.0001262,2]
[330343780,1719276637738,-150.0,0.00012724,2]
[330343781,1719276637748,-200.0,0.00012746,2]
[330343782,1719276637758,-151.3,0.00012746,2]
[330343783,1719276637768,-89.64585591,0.00012765,2]
[330343784,1719276637780,-210.35414409,0.00012765,2]
[330343785,1719276637791,-145.10837671,0.00012766,2]
[330343786,1719276637802,-1002.20146567,0.00012766,2]
[330343787,1719276637818,-331.67015762,0.00012766,2]
[330343788,1719276637827,-224.11,0.00012766,2]
[330343789,1719276637841,-150.99,0.00012766,2]
[330343790,1719276637852,-250.0,0.00012816,2]
[330343791,1719276637862,-127.40942172,0.0001289,2]
[330343792,1719276637876,-22.59057828,0.0001289,2]
[330343793,1719276637888,-645.01,0.00012891,2]
[330343794,1719276637898,-200.43,0.00013487,2]
[330343795,1719276637909,-160.67,0.00013699,2]
[330343796,1719276637923,-245.15,0.00013699,2]
[330343797,1719276637933,-615.04253098,0.000137,2]
[330343798,1719276637947,-384.95746902,0.000137,2]
[330343799,1719276637957,-39.92561636,0.000137,2]
[330343800,1719276638024,-564.933018,0.000137,2]
[330343802,1719276638036,-298.9533,0.000137,2]
[330343804,1719276638055,-96.18806564,0.000137,2]
[330343805,1719276638065,-172.89,0.000137,2]
[330343806,1719276638075,-1825.16966372,0.00013719,2]
[330343807,1719276638086,-104.98116064,0.00013768,2]
[330343833,1719276638451,-1e-08,0.00013768,2]
[330343834,1719276639651,-268.63151273,0.00013768,2]
[330343835,1719276639663,-309.4339,0.000138,2]
[330343836,1719276639674,-400.0,0.000138,5]
[330343837,1719276639684,-1198.9336,0.000138,2]
[330343838,1719276639694,-1027.04427735,0.000138,2]
[330343839,1719276639802,-545.65398465,0.000138,2]
[330343840,1719276640054,-5436.9680023,0.000138,2]
[330343841,1719276640065,-5079.04941599,0.000138,2]
[330343842,1719276640075,-266.37349123,0.00013806,2]
[330343843,1719276640085,-162.60728108,0.00013806,2]
[330343844,1719276640106,-887.93932126,0.00013806,2]
[330343845,1719276640116,-543.83180554,0.00013807,2]
[330343846,1719276640127,-641.63079217,0.00013807,2]
[330343847,1719276640137,-220.09,0.00013808,3]
[330343848,1719276640147,-1209.09346177,0.00013808,2]
[330343849,1719276640156,-285.75148297,0.00013837,2]
[330343850,1719276640166,-474.2892422,0.00013884,2]
[330343851,1719276640176,-158.27105518,0.00013884,2]
[330343852,1719276640185,-500.0,0.00013888,2]
[330343853,1719276640196,-200.0,0.00013888,2]